Cogmind - Beta 16 @@@ ROGUE MODE // 2026.01.07 @ 04:15:36 Player: Stibat Result: Destroyed by D-53 Grenadier with Mini Grenade Launcher Performance ------------- Evolutions (3) 1500 Regions Visited (7) 1400 Robots Destroyed (99) 495 Value Destroyed (2550) 2550 Prototype IDs (31) 620 Alien Tech Used (0) 0 Bonus (683) 683 TOTAL SCORE: 7248 Bonus ------- High Alert Combat Kills 11 Follower Combat Kills 372 Aligned with FarCom 300 Cogmind --------- Core Integrity 0/700 Matter 270/300 Energy 310/310 System Corruption 4% Temperature Cool (0) Movement Rolling (105) Ox1 Location -7/Factory Parts ------- > --- POWER (1) -------- Heavy Deuterium Engine > --- PROPULSION (5) --- Armored Wheel Cooled VTOL Module > --- UTILITY (4) ------ Visual Processing Unit Improved Melee Analysis Suite Improved Melee Analysis Suite Kinecellerator > --- WEAPON (3) ------- Great Axe > --- INVENTORY (5) ---- Improved Signal Interpreter Microactuators Firepult Advanced EMP Blaster Peak State ------------ > --- POWER ------------ Heavy Ion Engine > --- PROPULSION ------- VTOL Module Xenon Bombardment Thruster Xenon Bombardment Thruster Xenon Bombardment Thruster Improved Cesium-ion Thruster > --- UTILITY ---------- Visual Processing Unit Visual Processing Unit Improved Terrain Scanner System Shield > --- WEAPON ----------- Firepult Powered Hammer > --- INVENTORY -------- Structural Scanner Improved Signal Interpreter Advanced EMP Blaster [Rating: 56] Favorites ----------- Power Ion Engine Engine Ion Engine Power Core Light Nuclear Core Propulsion Aluminum Leg Leg Aluminum Leg Wheel Wheel Hover Unit Improved Hover Unit Flight Unit Improved VTOL Module Utility Visual Processing Unit Device Improved Heat Sink Storage Small Storage Unit Processor Visual Processing Unit Hackware System Shield Weapon Makeshift Axe Energy Gun Small Laser Energy Cannon Particle Cannon Ballistic Gun Assault Rifle Launcher Grenade Launcher Special Weapon Mining Laser Impact Weapon Heavy Mace Slashing Weapon Makeshift Axe Special Melee Weapon Improved Datajack Build | -11 -10 -10 -10 -9 -8 -8 -7 ------- Run | Yrd Mat Min Exi Min Mat Sto Fac Slots Evolved 6 | . . . . . 4 . 2 Power . | . . . . . . . . Propulsion 3 | . . . . . 2 . 1 Utility 2 | . . . . . 2 . . Weapon 1 | . . . . . . . 1 Parts Attached 75 | 6 8 6 . 9 21 2 23 Power 10 | 1 . 1 . 1 3 1 3 Engine 5 | 1 . 1 . . 1 1 1 Core 5 | . . . . 1 2 . 2 Reactor . | . . . . . . . . Propulsion 32 | 2 1 2 . 7 10 . 10 Treads . | . . . . . . . . Leg 7 | 2 1 2 . 2 . . . Wheel 4 | . . . . 3 . . 1 Hover 5 | . . . . . 3 . 2 Flight 16 | . . . . 2 7 . 7 Utility 15 | 1 3 . . . 3 1 7 Device 7 | . 2 . . . 1 1 3 Storage 2 | 1 . . . . 1 . . Processor 5 | . 1 . . . 1 . 3 Hackware 1 | . . . . . . . 1 Protection . | . . . . . . . . Artifact . | . . . . . . . . Weapon 18 | 2 4 3 . 1 5 . 3 Energy Gun 2 | 1 1 . . . . . . Energy Cannon 3 | . 2 . . . . . 1 Ballistic Gun 1 | 1 . . . . . . . Ballistic Cannon . | . . . . . . . . Launcher 3 | . . 1 . . 2 . . Special Weapon 2 | . 1 1 . . . . . Impact Weapon 3 | . . . . 1 1 . 1 Slashing Weapon 3 | . . 1 . . 1 . 1 Piercing Weapon . | . . . . . . . . Special Melee Weapon 1 | . . . . . 1 . . Unidentified Prototypes 3 | . . . . . 1 . 2 Parts Lost 28 | . 1 1 . 2 4 9 11 Power 4 | . . 1 . . . 1 2 Propulsion 13 | . 1 . . 1 2 3 6 Utility 6 | . . . . . 1 4 1 Weapon 5 | . . . . 1 1 1 2 Highest Loss Streak 6 | . 1 1 . 2 2 5 6 To Critical Strikes . | . . . . . . . . Average Backups 4 | 2 4 4 4 4 6 5 4 Power . | . 1 . . . . . . Propulsion . | . . 1 . . 1 . . Utility 1 | . . 1 1 1 1 2 2 Weapon 2 | 1 1 2 2 3 3 2 2 Tool/Special . | . . . . . . . . Unused Backups 7 | . 1 . 1 . 2 . 3 Power . | . . . . . . . . Propulsion 3 | . 1 . 1 . 1 . . Utility 2 | . . . . . . . 2 Weapon 2 | . . . . . 1 . 1 Tool/Special . | . . . . . . . . Average Slot Usage (%) 91 | . 95 99 100 96 94 83 68 Engine 8 | . 14 13 14 10 2 7 4 Core 2 | . . . . 3 6 . 1 Leg 14 | . 28 28 28 22 . . . Wheel 1 | . . . . 5 . . . Hover 1 | . . . . . 5 . 1 Flight 12 | . . . . . 26 31 25 Device 11 | . 14 14 14 14 11 6 1 Storage 3 | . 4 . . . 8 7 . Processor 13 | . 5 14 14 14 15 16 16 Energy Cannon 4 | . 17 19 . . . . . Launcher 2 | . . 3 . . 7 2 . Special Weapon 4 | . . 3 14 10 . . . Impact Weapon 3 | . . . . 1 5 9 11 Slashing Weapon 5 | . . . 14 14 4 2 . Peak Build Rating 56 | 6 12 13 15 18 36 38 56 Average Rating 21 | 4 9 11 13 15 31 31 33 On Entrance 14 | . 6 12 13 15 18 36 18 Avg Prop Armor Cover (%) 7 | . . . . . 6 . 7 Naked Turns . | . . . . . . . . Heaviest Build 20 | 13 15 14 10 12 19 20 19 Greatest Support 29 | 20 20 20 20 20 21 20 29 Greatest Overweight (x) 4 | 1 . . . 2 4 1 2 Average Overweight (x) . | . . . . . . . . Largest Inventory Capacity 8 | 8 8 5 5 5 8 8 5 Average Capacity 5 | 7 5 5 5 5 7 7 5 Most Carried 8 | 5 5 5 5 5 8 8 5 Average Carried 5 | 2 4 4 4 5 7 6 4 Final Capacity 8 | 8 5 5 5 5 8 5 5 Final Carried 8 | 2 5 5 5 5 8 5 5 Class Distribution -------------------- 35% | Scavenger-Mutant 25% | Sprinter 23% | Mutant 9% | Scout 4% | Commander-Mutant Dominant Class ---------------- Mutant | -10/Materials Mutant | -10/Mines Scavenger-Mutant | -10/Exiles Scavenger-Mutant | -9/Mines Sprinter | -8/Materials Sprinter | -8/Storage Sprinter | -7/Factory Resources | -11 -10 -10 -10 -9 -8 -8 -7 ----------- Run | Yrd Mat Min Exi Min Mat Sto Fac Matter Collected 1208 | 188 172 92 . 120 327 79 230 Remotely . | . . . . . . . . Salvage Created 3280 | . 402 247 . 635 950 785 261 Parts 182 | . 29 25 . 40 54 29 5 Haulers Intercepted 1 | . . . . . . 1 . Recyclers Shooed 3 | . . . . . 2 . 1 Parts Field Recycled . | . . . . . . . . Retrieved Matter . | . . . . . . . . Parts Self-Destructed . | . . . . . . . . Prevented . | . . . . . . . . Parts Restored . | . . . . . . . . Kills | -11 -10 -10 -10 -9 -8 -8 -7 ------- Run | Yrd Mat Min Exi Min Mat Sto Fac Combat Hostiles Destroyed 75 | . 12 7 . 9 19 20 8 Melee 34 | . . . . 9 10 10 5 Guns 2 | . 2 . . . . . . Cannons 13 | . 9 4 . . . . . AOE 11 | . . 3 . . 8 . . Classes Destroyed 13 | . 3 2 . 1 3 2 2 Worker 9 | . . 2 . 4 2 . 1 Tunneler 6 | . . 1 . 3 2 . . Hauler 1 | . . . . . . 1 . Recycler 4 | . . . . 2 1 . 1 Mechanic 1 | . . . . . 1 . . Operator 2 | . . . . . 2 . . Watcher 7 | . 3 . . . 3 . 1 Swarmer 26 | . 6 3 . 4 8 5 . Grunt 25 | . 6 4 . 5 3 7 . Brawler 1 | . . . . . . 1 . Sentry 16 | . . . . . 8 7 1 Programmer 1 | . . . . . . . 1 Assembled 6 | . . . . . . . 6 Best Kill Streak 6 | . 4 3 . 4 6 5 6 Combat Bots Only 6 | . 3 3 . 4 4 5 6 Max Kills in Single Turn 3 | . 2 2 . 1 3 1 1 Gunslinging . | . . . . . . . . Exploded 3 | . . 1 . . 3 . . Melee 1 | . . . . 1 1 1 1 Uniques/NPCs Destroyed . | . . . . . . . . Combat | -11 -10 -10 -10 -9 -8 -8 -7 -------- Run | Yrd Mat Min Exi Min Mat Sto Fac Hostile Shots Fired 423 | . 29 16 . 43 69 117 149 Missed 144 | . 8 4 . 10 33 39 50 Hits 279 | . 21 12 . 33 36 78 99 Melee 5 | . . . . . . 1 4 Projectile 274 | . 21 12 . 33 36 77 95 AOE 12 | . . . . . 1 . 11 Critical Strikes 8 | . . . . 1 2 2 3 Part Disruptions 2 | . . . . . . . 2 Damage Taken 3844 | . 259 143 . 377 522 1052 1491 Core 1292 | . 38 17 . 108 112 316 701 Absorbed by Shields 25 | . . . . . . 25 . Regen/Repaired (Parts) 138 | . . . . . 60 78 . Core Remaining (%) 52 | 100 . . . 34 . 22 . Volleys Fired 52 | . 23 18 . . 11 . . Largest 2 | . 2 2 . . 1 . . Hottest 136 | . 136 136 . . 33 . . Shots Fired 84 | . 46 27 . . 11 . . Gun 10 | . 10 . . . . . . Cannon 54 | . 36 18 . . . . . Launcher 14 | . . 3 . . 11 . . Special 6 | . . 6 . . . . . Kinetic 5 | . 5 . . . . . . Thermal 65 | . 41 24 . . . . . Explosive 6 | . . 3 . . 3 . . Electromagnetic 8 | . . . . . 8 . . Robot Hit Streak 13 | . 13 11 . . 1 . . Robot Miss Streak 2 | . 2 2 . . 2 . . Penetration Max . | . . . . . . . . Secondary Targets . | . . . . . . . . Shots Hit Robots 204 | . 28 16 . 36 40 59 25 Core Hits 74 | . 17 12 . 12 21 8 4 Critical Kills 3 | . 1 . . . 1 . 1 Critical Parts Destroyed 13 | . . . . . 2 8 3 Critical Strikes 24 | . 1 . . 3 5 11 4 Meltdown 1 | . 1 . . . . . . Smash 18 | . . . . . 3 11 4 Sever 5 | . . . . 3 2 . . Melee Attacks 259 | . . 3 . 56 59 81 60 Impact 160 | . . . . . 24 76 60 Slashing 98 | . . 3 . 56 34 5 . Piercing . | . . . . . . . . Sneak Attacks 27 | . . 2 . 10 11 2 2 Combat Hostiles 3 | . . . . . 2 1 . Follow-up Attacks 5 | . . . . . . 5 . Damage Inflicted 8940 | . 513 578 . 1710 2381 2464 1294 Guns 108 | . 108 . . . . . . Cannons 673 | . 405 268 . . . . . Explosions 528 | . . 113 . . 415 . . Melee 7606 | . . 172 . 1710 1966 2464 1294 Ramming 1 | . . 1 . . . . . Kinetic 51 | . 51 . . . . . . Thermal 754 | . 462 292 . . . . . Explosive 301 | . . 113 . . 188 . . Electromagnetic 227 | . . . . . 227 . . Impact 4481 | . . . . . 881 2306 1294 Slashing 3125 | . . 172 . 1710 1085 158 . Piercing . | . . . . . . . . Highest Corruption 4 | . . . . . 1 3 4 Average Corruption 2 | . . . . . 1 2 2 Corruption Purged . | . . . . . . . . Corruption Blocked . | . . . . . . . . Effects 24 | . . . . . 2 15 7 Message Errors 5 | . . . . . 1 3 1 Matter Fused 7 | . . . . . . 6 1 Heat Flow Errors 2 | . . . . . . 2 . Energy Discharges 2 | . . . . . 1 1 . Parts Rejected 1 | . . . . . . . 1 Data Loss (minor) 2 | . . . . . . 1 1 Data Loss (major) 5 | . . . . . . 2 3 Overload Shots . | . . . . . . . . Overflow Damage 1903 | . 13 38 . 195 606 623 428 Projectiles 10 | . 10 . . . . . . Explosions 39 | . 3 . . . 36 . . Melee 1854 | . . 38 . 195 570 623 428 Knockbacks 14 | . . . . . 3 4 7 Impact 14 | . . . . . 3 4 7 Kinetic . | . . . . . . . . Secondary . | . . . . . . . . Self-Inflicted Damage 109 | . 63 . . . 46 . . Shots 4 | . 1 . . . 3 . . Rammed . | . . . . . . . . Targets Rammed 2 | . . 2 . . . . . Kicked 2 | . . 2 . . . . . Crushed . | . . . . . . . . Highest Temperature 266 | . 132 170 . . 9 266 39 Average Temperature 46 | . 41 70 . . 8 107 3 Received Heat Transfer 1064 | . 60 63 . 195 144 348 254 Siege Activations . | . . . . . . . . Martial Activations . | . . . . . . . . Shielding Activations . | . . . . . . . . Robots Disrupted . | . . . . . . . . Combat Hostiles . | . . . . . . . . Robots Corrupted 19 | . . . . . 4 10 5 Combat Hostiles 14 | . . . . . 1 10 3 Parts Fried 24 | . . . . . 9 13 2 Impact Corruptions 60 | . . . . . 16 25 19 Robots Melted 1 | . 1 . . . . . . Combat Hostiles 1 | . 1 . . . . . . Parts Melted 8 | . 6 2 . . . . . Heat Transferred 1396 | . 865 531 . . . . . Parts Sabotaged . | . . . . . . . . Parts Stolen . | . . . . . . . . Parts Stripped . | . . . . . . . . Power Chain Reactions . | . . . . . . . . Alert | -11 -10 -10 -10 -9 -8 -8 -7 ------- Run | Yrd Mat Min Exi Min Mat Sto Fac Maximum Alert Level 2 | . 1 . . 1 1 2 1 Low Security (%) 86 | 100 77 100 . 97 96 39 83 Level 1 13 | . 22 . . 2 3 54 16 Level 2 . | . . . . . . 5 . Level 3 . | . . . . . . . . Level 4 . | . . . . . . . . Level 5 . | . . . . . . . . High Security . | . . . . . . . . Max Security . | . . . . . . . . Peak Influence 413 | . 253 87 . 280 248 413 234 Initial 172 | . . 67 . . 107 53 172 Average 106 | . 110 35 . 45 105 246 158 Influence Increases 3356 | . 466 205 . 531 785 695 674 Destroy 0b10 Robot/C 1700 | . 240 140 . 240 400 400 280 Destroy 0b10 Robot/NC 155 | . 15 15 . 45 55 5 20 Destroy Leader 438 | . 56 30 . 40 116 122 74 Allied During Kill 104 | . . . . 11 3 . 90 Successful Hack 65 | . 17 . . . 13 16 19 Disable Machine 75 | . 30 . . . 45 . . Anti-Garrison Action 150 | . . . . . . . 150 Destroy Structure 84 | . 33 20 . . 18 2 11 Partial Spotted 45 | . . . . . 30 15 . Lose Combat Pursuer 540 | . 75 . . 195 105 135 30 Influence Decreases 3174 | . 293 378 . 255 933 443 872 Entered New Map 558 | . . 106 . . 169 75 208 Time Decay 1946 | . 283 262 . 235 514 278 374 Lost Part 280 | . 10 10 . 20 40 90 110 Lost Ally 240 | . . . . . 60 . 180 Purge Threat 150 | . . . . . 150 . . Squads Dispatched 14 | . 2 . . . 3 4 5 Investigation 4 | . 1 . . . 1 . 2 Extermination 1 | . . . . . . . 1 Reinforcement 4 | . 1 . . . 2 1 . Assault 2 | . . . . . . . 2 Garrison 3 | . . . . . . 3 . Intercept . | . . . . . . . . Searches Triggered . | . . . . . . . . Construction Impeded . | . . . . . . . . Haulers Reinforced . | . . . . . . . . Active Scanning Responses . | . . . . . . . . Cargo Convoy Interrupts . | . . . . . . . . Stealth | -11 -10 -10 -10 -9 -8 -8 -7 --------- Run | Yrd Mat Min Exi Min Mat Sto Fac Distress Signals 2 | . . . . . 1 . 1 Communications Jammed . | . . . . . . . . Distress Signals . | . . . . . . . . Times Spotted 134 | . 22 7 . 21 32 26 26 Peak Tracking Total 6 | . 5 3 . 5 4 5 6 Tactical Retreats 23 | . 3 . . 9 4 5 2 Traps | -11 -10 -10 -10 -9 -8 -8 -7 ------- Run | Yrd Mat Min Exi Min Mat Sto Fac Traps Triggered 6 | . . . . . 1 3 2 Indirectly . | . . . . . . . . Trap Hack Attempts . | . . . . . . . . Triggered . | . . . . . . . . Disarmed . | . . . . . . . . Reprogrammed . | . . . . . . . . Reused . | . . . . . . . . Traps Extracted . | . . . . . . . . Installed . | . . . . . . . . Triggered . | . . . . . . . . Machines | -11 -10 -10 -10 -9 -8 -8 -7 ---------- Run | Yrd Mat Min Exi Min Mat Sto Fac Machines Disabled 6 | . 2 . . . 3 . 1 Max in Single Turn 1 | . 1 . . . 1 . 1 Garrison Access 1 | . . . . . . . 1 Machines Repaired . | . . . . . . . . Machines Dismantled . | . . . . . . . . Machines Sabotaged . | . . . . . . . . Overloaded Fab Kills . | . . . . . . . . Hacking | -11 -10 -10 -10 -9 -8 -8 -7 --------- Run | Yrd Mat Min Exi Min Mat Sto Fac Machines Accessed 37 | . 5 . 5 . 10 8 9 Terminals 21 | . 4 . . . 7 6 4 Fabricators 2 | . . . . . . . 2 Repair Stations 6 | . 1 . . . 2 2 1 Recycling Units . | . . . . . . . . Scanalyzers 3 | . . . . . 1 . 2 Garrison Access . | . . . . . . . . Total Hacks 121 | . 10 . 50 . 25 13 23 Successful 94 | . 4 . 50 . 19 8 13 Failed 27 | . 6 . . . 6 5 10 Catastrophic 5 | . 1 . . . 1 2 1 Database Lockouts . | . . . . . . . . Manual 1 | . . . 1 . . . . Terminals 38 | . 8 . . . 13 9 8 Fabricators 4 | . . . . . . . 4 Repair Stations 15 | . 2 . . . 6 4 3 Recycling Units . | . . . . . . . . Scanalyzers 14 | . . . . . 6 . 8 Garrison Access . | . . . . . . . . Terminal Hacks 68 | . 3 . 50 . 8 4 3 Record 51 | . . . 49 . 2 . . Prototype ID Bank 2 | . 1 . . . . 1 . Open Door 2 | . . . . . . 2 . Open DSF 1 | . . . . . . . 1 Alert Level 5 | . . . . . 2 1 2 Unreport Threat 1 | . . . . . 1 . . Locate Traps 2 | . 1 . . . 1 . . Maintenance Status 1 | . . . . . 1 . . Patrol Status 1 | . . . . . 1 . . Reinforcement Status 1 | . 1 . . . . . . Proto ID Catalog 1 | . . . 1 . . . . Fabricator Hacks 3 | . . . . . . . 3 Load Schematic 1 | . . . . . . . 1 Build 2 | . . . . . . . 2 Repair Station Hacks 11 | . 1 . . . 5 4 1 Scan Component 7 | . 1 . . . 3 2 1 Repair 4 | . . . . . 2 2 . Recycling Unit Hacks . | . . . . . . . . Scanalyzer 12 | . . . . . 6 . 6 Insert Component 7 | . . . . . 4 . 3 Analyze 4 | . . . . . 2 . 2 Retrieve Study 1 | . . . . . . . 1 Garrison Access Hacks . | . . . . . . . . Unauthorized Hacks . | . . . . . . . . Terminals . | . . . . . . . . Fabricators . | . . . . . . . . Repair Stations . | . . . . . . . . Recycling Units . | . . . . . . . . Scanalyzers . | . . . . . . . . Garrison Access . | . . . . . . . . Data Cores Recovered . | . . . . . . . . Used . | . . . . . . . . Hacking Detections 22 | . 5 . . . 4 6 7 Full Trace Events 3 | . 1 . . . . . 2 Feedback Events . | . . . . . . . . Feedback Blocked . | . . . . . . . . Robot Schematics Acquired . | . . . . . . . . Robots Built . | . . . . . . . . Authchips . | . . . . . . . . Time . | . . . . . . . . Total Robot Build Rating . | . . . . . . . . Part Schematics Acquired 3 | . . . . . 1 . 2 Parts Built 3 | . . . . . . . 3 Authchips . | . . . . . . . . Time 142 | . . . . . . . 142 Total Part Build Rating 11 | . . . . . . . 11 Part Studies Acquired 1 | . . . . . . . 1 Parts Repaired 4 | . . . . . 2 2 . Time 134 | . . . . . 70 64 . Parts Recycled . | . . . . . . . . Recycled Matter . | . . . . . . . . Retrieved Matter . | . . . . . . . . Retrieved Components . | . . . . . . . . Parts Scanalyzed 3 | . . . . . 1 . 2 Part Schematics Acquired 3 | . . . . . 1 . 2 Parts Damaged . | . . . . . . . . Bothacking | -11 -10 -10 -10 -9 -8 -8 -7 ------------ Run | Yrd Mat Min Exi Min Mat Sto Fac Used RIF Installer . | . . . . . . . . Robots Hacked 1 | . . . . . 1 . . Non-combat 1 | . . . . . 1 . . Combat . | . . . . . . . . Robot Hacks Applied 1 | . . . . . 1 . . no_distress 1 | . . . . . 1 . . Relay Couplers Released . | . . . . . . . . Fabnet Peak Effective % . | . . . . . . . . Robots Rewired . | . . . . . . . . Allies Hacked . | . . . . . . . . Hacks Repelled . | . . . . . . . . Allies | -11 -10 -10 -10 -9 -8 -8 -7 -------- Run | Yrd Mat Min Exi Min Mat Sto Fac Total Allies 14 | . . 1 . 3 . 10 . Largest Group 10 | . . 1 1 3 3 10 10 Highest-Rated Group 173 | . . 31 31 40 40 173 173 Highest-Rated Ally 31 | . . 31 31 16 16 29 29 Total Orders . | . . . . . . . . Ally Attacks 105 | . . . . 12 6 . 87 Total Damage 1253 | . . . . 147 69 . 1037 Kills 18 | . . . . 3 1 . 14 Allies Corrupted . | . . . . . . . . Allies Melted . | . . . . . . . . Intel | -11 -10 -10 -10 -9 -8 -8 -7 ------- Run | Yrd Mat Min Exi Min Mat Sto Fac Active Infowar (turns) 6272 | . 581 668 851 1271 1403 619 879 Optics 6017 | . 326 668 851 1271 1403 619 879 Terrain 199 | . . . . . . . 199 Structural 608 | . 255 . . . 353 . . Robot Analysis Total . | . . . . . . . . Derelict Logs Recovered 5 | . . 3 . 2 . . . Drone Launches . | . . . . . . . . Drone Recoveries . | . . . . . . . . Exploration | -11 -10 -10 -10 -9 -8 -8 -7 ------------- Run | Yrd Mat Min Exi Min Mat Sto Fac Turns Passed 6592 | 56 845 668 851 1271 1403 619 879 Spaces Moved 6114 | 41 568 448 706 902 1652 607 1190 Core 19 | 10 . . . 2 7 . . Treads . | . . . . . . . . Legs 2430 | 31 568 448 706 677 . . . Wheels 278 | . . . . 223 27 . 28 Hover 368 | . . . . . 327 . 41 Flight 3019 | . . . . . 1291 607 1121 Fastest Speed 25 | 50 120 120 120 80 26 26 25 Average Speed 71 | 104 120 120 120 110 33 37 43 Slowest Speed 250 | 120 120 120 120 150 250 102 175 Overloaded Moves . | . . . . . . . . Propulsion Burnouts . | . . . . . . . . Robots Hopped . | . . . . . . . . Potential Cave-ins 3 | . . . . . 3 . . Cave-ins Triggered . | . . . . . . . . Exploration Rate (%) 70 | 4 94 87 95 95 84 74 27 Regions Visited 7 Branch Regions 4 Pre-discovered Areas 2 | . . 1 1 . . . . Known Exits Taken 1 | . . . . . . 1 . Unknown Exits Taken 6 | 1 1 1 1 1 1 . . Scrap Searched 2 | . . 1 . 1 . . . Spaces Dug 26 | . . 4 . . 10 2 10 Terrain Destroyed 90 | . 34 22 . . 22 2 10 Melee 22 | . . . . . 10 2 10 Projectile 4 | . . 4 . . . . . AOE 64 | . 34 18 . . 12 . . Terrain Rammed . | . . . . . . . . Walls Destroyed . | . . . . . . . . Machines Disabled . | . . . . . . . . Actions | -11 -10 -10 -10 -9 -8 -8 -7 --------- Run | Yrd Mat Min Exi Min Mat Sto Fac Total 7831 | 54 685 535 711 1123 2403 862 1458 Wait 1202 | . 71 51 3 144 620 143 170 Move 6107 | 40 567 447 705 901 1651 606 1190 Hop . | . . . . . . . . Pick Up 35 | 8 9 3 1 . 13 . 1 Fast Attach 51 | . 2 . . 9 13 3 24 Attach 19 | 6 2 1 . . 5 3 2 Detach 9 | . . . . . 6 . 3 Swap 28 | . 5 6 . 3 10 . 4 Drop 51 | . 6 4 2 10 15 1 13 Fire 52 | . 23 18 . . 11 . . Melee 245 | . . 3 . 56 59 76 51 Ram . | . . . . . . . . Kick 2 | . . 2 . . . . . Crush . | . . . . . . . . Escape Stasis 30 | . . . . . . 30 . Rewire . | . . . . . . . . Trap . | . . . . . . . . Miscellaneous . | . . . . . . . . Route ------- -11/Scrapyard -10/Materials (discovered 6 exits: *Mat x3 / *Min x2 / [Sub]) -10/Mines (discovered 3 exits: *Mat x2 / *Exi) -10/Exiles (discovered 2 exits: *Min x2) -9/Mines (discovered 2 exits: *Mat x2) -8/Materials (discovered 3 exits: *Fac x2 / *Sto) -8/Storage -7/Factory (discovered 3 exits: [*Fac x3]) History --------- Turn | Location | Event 7 | -11/Scrapyard | Discovered new exit (range 16) 57 | -11/Scrapyard | Entered Materials 67 | -10/Materials | Discovered new exit (range 13) 177 | -10/Materials | Discovered new exit (range 3) 317 | -10/Materials | Build established: Mutant 322 | -10/Materials | Discovered new exit (range 9) 414 | -10/Materials | Discovered new exit (range 10) 543 | -10/Materials | Discovered new exit (range 3) 884 | -10/Materials | Discovered new exit (range 14) 902 | -10/Materials | Entered Mines 922 | -10/Mines | Identified exit to Materials 931 | -10/Mines | YI-UF0 nonchalantly dropped a Grenade Launcher on the ground 970 | -10/Mines | Discovered exit to Materials (range 15) 1131 | -10/Mines | Learned location of 1 exit from Materials 1371 | -10/Mines | Received a Mining Laser from a helpful Derelict 1465 | -10/Mines | Found DCF Scrap (12 items) 1496 | -10/Mines | A weapon hastily lodged in a ceiling crevice suddenly fell to the ground 1564 | -10/Mines | Deemed a non-threat by the Exiles lab entrance 1565 | -10/Mines | Discovered new exit (range 5) 1570 | -10/Mines | Entered Exiles 1570 | -10/Exiles | Accompanied by 1 ally 1588 | -10/Exiles | Discovered new exit (range 17) 1600 | -10/Exiles | Met 8R-AWN 1608 | -10/Exiles | Build established: Scavenger-Mutant 1621 | -10/Exiles | Met EX-HEX 1675 | -10/Exiles | Met EX-DEC 1709 | -10/Exiles | Visited The Gauntlet 1868 | -10/Exiles | Learned location of Zion (-7) 1905 | -10/Exiles | Discovered new exit (range 15) 2003 | -10/Exiles | Met EX-BIN 2047 | -10/Exiles | Aligned with FarCom system 2048 | -10/Exiles | Given EX-Vault access code 2117 | -10/Exiles | Opened EX-Vault 2134 | -10/Exiles | Found Firepult 2163 | -10/Exiles | Warned to stay clear of 0b10 Research branches 2421 | -10/Exiles | Left Exiles lab with Firepult 2421 | -10/Exiles | Entered Mines 2433 | -9/Mines | Learned Materials terminal intel 2628 | -9/Mines | Learned Materials stockpile data 3492 | -9/Mines | Core integrity fell below 50% 3569 | -9/Mines | Discovered new exit (range 12) 3625 | -9/Mines | Assisted by bots powering up and referring to "LRC-V3" 3633 | -9/Mines | Discovered new exit (range 5) 3692 | -9/Mines | Entered Materials 3692 | -8/Materials | Accompanied by 3 allies 3692 | -8/Materials | Evolved 4 slots: Propulsion x2, Utility x2 3693 | -8/Materials | Identified exit to Factory 3695 | -8/Materials | Loaded intel: 12 terminal locations 3765 | -8/Materials | Lost 3 allies 4035 | -8/Materials | Build established: Scout 4118 | -8/Materials | Discovered new exit (range 17) 4159 | -8/Materials | Discovered exit to Factory (range 4) 4247 | -8/Materials | Repaired Hvy. Hammer 4496 | -8/Materials | Build established: Sprinter 5007 | -8/Materials | Repaired Reaction Control System 5095 | -8/Materials | Entered Storage 5145 | -8/Storage | Repaired Grenade Launcher 5267 | -8/Storage | Garrison activated, responded to threat 5342 | -8/Storage | Repaired Lgt. Deuterium Engine 5499 | -8/Storage | Core integrity fell below 50% 5626 | -8/Storage | Lost 5 parts (2n3u) 5669 | -8/Storage | Discovered exit to Factory (range 18) 5689 | -8/Storage | Assisted by bots powering up and referring to "LRC-V3" 5714 | -8/Storage | Entered Factory 5714 | -7/Factory | Accompanied by 10 allies 5714 | -7/Factory | Evolved 2 slots: Propulsion x1, Weapon x1 5802 | -7/Factory | Lost 3 allies 5984 | -7/Factory | Lost 3 allies 6019 | -7/Factory | Discovered new exit (range 16) 6082 | -7/Factory | Discovered new exit (range 18) 6135 | -7/Factory | Fabricated Armor Integrity Analyzer? 6202 | -7/Factory | Fabricated Imp. VTOL Module (x1) 6352 | -7/Factory | Discovered new exit (range 8) 6516 | -7/Factory | Core integrity fell below 50% 6545 | -7/Factory | Lost 6 parts (1p3n1u1w) 6569 | -7/Factory | Core integrity fell below 20% 6593 | -7/Factory | Destroyed by D-53 Grenadier with Mini Grenade Launcher Last Messages --------------- as-50188 system corrupted by crushing effect. as-50188 destroyed. Destroyed Asb. Rifle. as-36990 system corrupted by crushing effect. as-46236 destroyed. Extracted 3 matter. Acquired 8 matter. Acquired Unknown Device. Identified Kinecellerator. Acquired Prototype Engine. Identified Hvy. Deuterium Engine. Acquired Arm. Wheel. Powered Hammer destroyed. Fabricator disabled. Fusion Modulator explodes. Triggered Shock Trap. The floor emits a surge of raw power. System corrupted (+1). Acquired Great Axe. Imp. VTOL Module destroyed. Map ----- +----------------------------------------------------+ | ?????????????????????????????????????????????????? | | ?????????????????????????????????????????????????? | | ?????????????????????????????????????????????????? | | ?????????????????????????????????????????????????? | | ?????????????????????????????????????????????????? | | ?????????????????????????????????????????????????? | | ?????????????????????????????????????????????????? | | ?????????????????????????????????????????????????? | | ?????????????????????????????????????????????????? | | ?????????????????????????????????????????????????? | | ?????????????????????????????????????????????????? | | ?????????????????????????????????????????????????? | | ?????????????????????????????????????????????????? | | ?????????????????????????????????????????????????? | | ?????????????????????????????????????????????????? | | ?????????????????????????????????????????????????? | | ???????????????###############+#???????? ???????? | | ??????????????# #???????? #??????? | | ??????????????+ """ """ #??????? #??????? | | ??????????????# """ """ #??????? #??????? | | ??????????????# """ """ #??????? #??????? | | ??????????????# "" "" #??????# #??????? | | ??????????????# "" "" #?????? #??????? | | ??????????????# #?????? #??????? | | ??????????????# d #?????? #??????? | | ??????????????# @d #?????? ????????? | | ??????????????###### #####+### #?????????? | | ??????????????????# ## #?????????? | | ??????????????????### # ! ##????????? | | ??????????????????? ## " #?????? | | ?????????????????? ### " ""####### | | ???????????????? #?# ^" ] " # | | ???????????????# !!! #?# ^" C""###? # | | ???????????????+ !!! #?# " "##??# # | | ???????????????# !!! #?# [" #??# # | | ???????????????# #?# " #??# # | | ???????????????# #?# ; "##??# # | | ???????????????####+##+###?# ##"""";""""#?### # | | ??????????????????# ##### #?## ##"##### # # | | ????????????? o #???###?# # | | ?????????????????????########## #???????# | | ??????????????????????????????# #???????# """ | | ??????????????????????????????# #?####### """% | | ??????????????????????????????# #?# # """ | | ??????????????????????????????# ### # | | ??????????????????????????????# + %! | | ??????????????????????????????##### # % # | | ??????????????????????????????????# # ""%"% # | | ??????????????????????????????????####### ""G"" # | | ????????????????????????????????????????########## | +----------------------------------------------------+ Best States ------------- Heat Dissipation 45 Energy Generation 18 Energy Capacity 310 Matter Stores 300 Matter Capacity 300 Sight Range 18 Terrain Scan Range 16 Terrain Scan Density 10 Evasion (%) 72 Melee Accuracy 12 Target Analysis 5 Kinecelleration 30 Defensive Hacking 10 Item Schematics ----------------- Imp. VTOL Module | -8/Materials | Scanalyzed Imp. Signal Interpreter | -7/Factory | Scanalyzed Adv. EMP Blaster | -7/Factory | Scanalyzed Robot Schematics ------------------ None Fabricated ------------ Armor Integrity Analyzer | x2 | -7/Factory | Preloaded Imp. VTOL Module | x1 | -7/Factory Repaired ---------- Hvy. Hammer | 69% | -8/Materials Reaction Control System | 33% | -8/Materials Grenade Launcher | 40% | -8/Storage Lgt. Deuterium Engine | 16% | -8/Storage Studied --------- Hvy. Mace | -7/Factory | Hacked Alien Tech Used ----------------- None Achievements -------------- Can't Catch Me Deadly Force Librarian Part-time Excavator Safety First Sixth Sense Challenges ------------ None Game ------ Seed LaserTargetDoublenader Manual? 0 Play Time 01:54:15 Cumulative 9.0 hours Start 2026.01.07 @ 02:17:24 End 2026.01.07 @ 04:15:36 Sessions 1 Manual Loads 0 Difficulty Rogue Special Mode None Game No. 7 Rogue 7 Adventurer 0 Explorer 0 Win Type - Total 0 Types 0/0/0/0/0/0/0/0/0/0 Lore% 9 Gallery% 14 Achievement% 12 Wizard Run 0 Options --------- Layout 1 ASCII 0 Keyboard 1 Movement Numpad Keybinds 0 Fullscreen 1 Font 24/Proggy Map View 50x35 Zoom Use 0% Tactical HUD 0 Map Filters NONE Filters NONE Steam 1 RUN: 91cae743-9c10-4c1a-b1b1-b930e8c04ac6